[Event "ESP-ch Teams Primera 2022"]
[Site "Sanxenxo Pontevedra"]
[Date "2022.09.23"]
[Round "7.22"]
[White "Gomez Dieguez, David"]
[Black "Rodriguez Ferreiros, Andres"]
[Result "1-0"]
[ECO "C02"]
[WhiteElo "2332"]
[BlackElo "2110"]
[Annotator "TA"]
[PlyCount "89"]
[EventDate "2022.09.17"]
[EventType "team-tourn"]
[EventCountry "ESP"]
[SourceTitle "playchess.com"]
[Source "ChessBase"]
[SourceQuality "1"]
[TimeControl "5400+30"]

{[%evp 10,89,-3,0,0,-25,-25,-32,0,-9,46,14,92,70,104,43,0,42,33,42,86,61,166,167,228,231,366,365,343,334,331,243,233,203,211,176,271,260,343,229,310,338,581,96,92,76,61,79,134,0,122,113,183,185,213,226,227,216,209,185,177,169,185,171,173,130,128,123,127,90,236,232,234,238,436,426,1079,1065,875,869,1227,1227]} 1. e4 {[%emt 0:00:02]} e6 {[%emt 0:00:10]} 2. d4 {[%emt 0:00:13]} d5 {[%emt 0:00:04]} 3. e5 {[%emt 0:00:05]} c5 {[%emt 0:00:07][%cal Bc7c5,Bc5d4][%mdl 32]} 4. c3 {[%emt 0:00:04]} Nc6 {[%emt 0:00:09]} 5. Nf3 {[%emt 0:00:03]} Bd7 {[%emt 0:00:18]} 6. Bd3 {[%emt 0:00:22]} cxd4 {[%emt 0:02:09] C02: French: Advance Variation.} 7. O-O {[%emt 0:02:11] is cutting edge theory.} Qb6 {[%emt 0:04:13]} 8. Re1 {[%emt 0:00:05]} h6 {[%emt 0:08:12] Black is slightly better.} 9. Nbd2 {[%emt 0:11:23] [#]} g5 $146 {[%emt 0:09:19]} ({Black should try} 9... Nge7 $11) ({Predecessor:} 9... dxc3 10. bxc3 Nge7 11. Rb1 Qc7 12. c4 dxc4 13. Nxc4 Nd5 14. Qb3 Bb4 15. Nd6+ Kf8 {0-1 (46) Lyell,M (2108)-Borsuk,K (2432) Budapest 2021}) 10. Nb3 {[%emt 0:04:06]} Bg7 {[%emt 0:04:16]} (10... dxc3 $11 {remains equal.} 11. bxc3 Qc7) 11. cxd4 {[%emt 0:12:56]} Nge7 {[%emt 0:07:48]} 12. h4 {[%emt 0:09:38]} (12. Nc5 $16) 12... g4 $14 {[%emt 0:05:15]} 13. Nh2 {[%emt 0:01:47]} h5 {[%emt 0:03:36]} 14. Be3 {[%emt 0:03:09]} f6 {[%emt 0:18:01]} 15. Rc1 {[%emt 0:07:37]} O-O-O {[%emt 0:07:09]} (15... fxe5 $14 16. dxe5 Qb4) 16. Nc5 $18 {[%emt 0:04:51]} fxe5 {[%emt 0:03:10]} (16... Kb8 $142) 17. dxe5 {[%emt 0:01:41]} (17. Bg5 e4 18. Bxe7 Bxd4 $11) 17... Bxe5 {[%emt 0:07:33]} (17... d4 $142 18. Bg5 Rhe8) 18. Nxd7 {[%emt 0:14:46]} Bxh2+ {[%emt 0:00:11]} 19. Kxh2 {[%emt 0:00:12]} Qc7+ {[%emt 0:00:08]} 20. g3 {[%emt 0:01:08]} Kxd7 {[%emt 0:03:00]} 21. b4 {[%emt 0:01:59]} Qb8 {[%emt 0:06:08]} 22. Kg2 {[%emt 0:08:59][%mdl 1024] White has strong compensation.} Rhf8 {[%emt 0:01:41]} (22... a6 $142 23. Bb6 Rdf8) 23. Bc5 {[%emt 0:02:02] aiming for Qe2.} Rf3 {[%emt 0:02:53]} (23... b6 $2 24. Bxe7 (24. Qe2 e5 $16) 24... Kxe7 25. Rxc6 $18) 24. Be4 {[%emt 0:05:08] A strong pair of Bishops.} ({Worse is} 24. Bb5 Nf5 $11) 24... Rf6 {[%emt 0:03:49]} 25. b5 {[%emt 0:01:46] The board is on fire.} Ke8 $2 {[%emt 0:01:05]} (25... Na5 26. Qd2 b6) 26. bxc6 $2 {[%emt 0:01:30]} (26. Bb1 $18) 26... dxe4 $16 {[%emt 0:00:17]} 27. Qa4 {[%emt 0:00:50] Hoping for c7+. White is more active.} Nxc6 {[%emt 0:01:22]} 28. Qxe4 {[%emt 0:00:45] Strongly threatening Qh7.} Qc7 {[%emt 0:00:49] [#] Against Qh7} (28... Rd7 $142) 29. Rc2 {[%emt 0:02:04]} ({Better is} 29. Bd4 $1 $16 {[%cal Rd4f6][%mdl 512]} Rxd4 30. Qxd4 Qxg3+ 31. fxg3 Nxd4 32. Rc7) 29... Qd7 {[%emt 0:00:53] [#]} (29... Qf7 $11) 30. Be3 $1 {[%emt 0:00:58] And now Bg5 would win.} Qd5 {[%emt 0:01:14]} (30... Qg7 $16) 31. Bg5 $18 {[%emt 0:00:20][%mdl 64] Skewer} Qxe4+ {[%emt 0:00:29]} 32. Rxe4 {[%emt 0:00:05]} Kf7 {[%emt 0:00:30]} (32... Rd4 $2 33. Rxd4 Nxd4 34. Rc8+ Kf7 35. Rc7+ Kg6 36. Bxf6 Kxf6 37. Rxb7 $18) 33. Bxf6 {[%emt 0:01:30]} Kxf6 {[%emt 0:00:01][%mdl 4096] Endgame KRR-KRN} 34. Rc5 {[%emt 0:00:39]} e5 {[%emt 0:00:14]} 35. Re2 {[%emt 0:01:18] Inhibits Rd2.} Kf5 {[%emt 0:00:31]} 36. Rb2 {[%emt 0:00:16]} Rd7 {[%emt 0:00:13]} 37. f3 {[%emt 0:00:32]} gxf3+ {[%emt 0:01:02]} 38. Kxf3 {[%emt 0:00:01]} Rd3+ {[%emt 0:00:32]} 39. Kf2 {[%emt 0:00:08]} Kg4 {[%emt 0:00:57] A mistake that costs the game.} (39... Nd4 $16) 40. Rxb7 {[%emt 0:00:36]} Rf3+ {[%emt 0:00:03]} 41. Ke1 {[%emt 0:00:13]} Nd4 $2 {[%emt 0:00:56]} (41... Rf6 {is a better defense.} 42. Rc3 (42. Rc7 Nd4 $18) 42... Nd4 43. Rxa7 Nf3+ 44. Kd1 Kxg3) 42. Rg7+ {[%emt 0:01:27] White is clearly winning.} Kf5 {[%emt 0:00:19]} (42... Kh3 $142 43. Rxe5 Nf5) 43. Rf7+ {[%emt 0:00:21]} Ke4 {[%emt 0:00:11]} 44. Rxf3 {[%emt 0:00:06]} Kxf3 {[%emt 0:00:43]} 45. Rxe5 {[%emt 0:00:18] Weighted Error Value: White=0.38/Black=0.65} 1-0

[Event "ESP-ch Teams Primera 2022"]
[Site "Sanxenxo Pontevedra"]
[Date "2022.09.23"]
[Round "7.23"]
[White "Segura Santos, Luis"]
[Black "Gomez Carreno, Martin"]
[Result "1/2-1/2"]
[ECO "C55"]
[WhiteElo "2121"]
[BlackElo "2155"]
[Annotator "TA"]
[PlyCount "129"]
[EventDate "2022.09.17"]
[EventType "team-tourn"]
[EventCountry "ESP"]
[SourceTitle "playchess.com"]
[Source "ChessBase"]
[SourceQuality "1"]
[TimeControl "5400+30"]

{[%evp 20,129,13,20,6,14,14,11,11,13,14,11,3,0,0,-57,-7,-9,-10,-9,-10,-16,0,0,51,48,48,0,0,-4,-8,-11,-16,-43,-26,-32,-38,-41,-35,-44,-44,-49,-31,-31,-31,-31,-31,-44,-44,-45,-45,-45,0,-45,-32,-160,-160,-163,-53,-61,-53,-183,-183,-183,-175,-213,-72,-72,-72,-72,-72,-72,-55,-55,-55,-55,-55,-55,-55,-55,-8,-8,-8,-8,-8,-8,0,0,0,0,0,0,0,0,0,0,0,0,0,0,0,0,0,0,0,0,0,0,0,0,0,0]} 1. e4 {[%emt 0:00:03]} e5 {[%emt 0:00:04]} 2. Nf3 {[%emt 0:00:20]} Nc6 {[%emt 0:00:06]} 3. d4 {[%emt 0:00:05]} exd4 {[%emt 0:00:05]} 4. Bc4 {[%emt 0:00:06]} Nf6 {[%emt 0:00:07]} 5. e5 {[%emt 0:00:21]} d5 {[%emt 0:00:05]} 6. Bb5 {[%emt 0:00:04]} Ne4 {[%emt 0:00:06]} 7. Nxd4 {[%emt 0:00:07]} Bc5 {[%emt 0:00:06]} 8. Be3 {[%emt 0:00:07]} O-O {[%emt 0:00:33]} 9. Nxc6 {[%emt 0:00:10]} bxc6 {[%emt 0:00:10]} 10. Bxc5 {[%emt 0:00:05]} Nxc5 {[%emt 0:00:08]} 11. Bxc6 {[%emt 0:00:05]} Rb8 {[%emt 0:00:06] C56: Two Knights: 4 d4 exd4 5 0-0 Nxe4.} 12. Qxd5 {[%emt 0:00:08]} Qe7 {[%emt 0:00:06]} 13. O-O $1 {[%emt 0:00:06]} Rxb2 {[%emt 0:00:09]} 14. Nc3 {[%emt 0:00:15]} Rd8 {[%emt 0:01:17]} 15. Qf3 {[%emt 0:00:09]} Ne6 {[%emt 0:00:28][%cal Bc5e6,Be6g5,Bg5f3][%mdl 32] Strongly threatening ...Nd4.} 16. Nd5 {[%emt 0:19:43]} Qc5 {[%emt 0:19:28] [#]} 17. c3 $146 {[%emt 0:00:28] Inhibits Nd4.} ({Predecessor:} 17. Rad1 Kf8 18. Ne3 Rxd1 19. Nxd1 Rxc2 20. Be4 Rxa2 21. Bxh7 Ba6 22. Bd3 Bxd3 23. Qxd3 Qxe5 {1-0 (46) Matlakov,M (2674)-Ohanyan,E (2393) Chess.com INT 2022}) 17... Kf8 {[%emt 0:15:05]} (17... Kh8 $15 18. Ne3 Ng5) 18. Ne3 $1 $11 {[%emt 0:41:19]} Ng5 {[%emt 0:11:38]} 19. Qh5 {[%emt 0:02:57] Rad1 is the strong threat.} h6 {[%emt 0:12:28]} 20. Bf3 {[%emt 0:10:23]} Nxf3+ {[%emt 0:03:59]} ({Much less strong is} 20... Qxc3 21. Nd1 Qxe5 22. Nxb2 Qxb2 23. Rfd1 Rxd1+ 24. Rxd1 $16) (20... Qxe5 $2 21. Nc4 Qxc3 22. Nxb2 Qxb2 23. Rad1 Rxd1 24. Rxd1 $18) 21. Qxf3 {[%emt 0:00:06]} Bb7 {[%emt 0:00:57]} (21... Qxe5 $2 22. Nc4 Qe2 23. Nxb2 Qxb2 24. Qe4 $18) (21... Be6 $11) 22. Qf4 $14 {[%emt 0:01:03]} Re8 {[%emt 0:11:34]} 23. Rab1 {[%emt 0:08:55]} (23. Rfd1 $14 Qc6 24. Rd4) 23... Rb6 $11 {[%emt 0:04:49]} 24. Rfd1 {[%emt 0:07:41]} Qxe5 {[%emt 0:04:07]} 25. Qxe5 {[%emt 0:03:23]} Rxe5 {[%emt 0:00:01]} 26. Rd8+ {[%emt 0:01:57]} Re8 {[%emt 0:01:43]} (26... Ke7 $5 {[%cal Rb6b1]} 27. Rbd1 Rd6 28. R8xd6 cxd6 $15) 27. Rxe8+ {[%emt 0:01:21]} Kxe8 {[%emt 0:00:02][%mdl 4096] Endgame KRB-KRN} 28. Rb3 {[%emt 0:01:53]} Bc8 {[%emt 0:07:34]} 29. Rxb6 {[%emt 0:00:59]} axb6 $15 {[%emt 0:00:12] KB-KN} 30. Kf1 {[%emt 0:00:26]} Ke7 {[%emt 0:01:09]} 31. Ke2 {[%emt 0:00:11]} Kd6 {[%emt 0:00:09]} 32. Kd3 {[%emt 0:00:40]} Kc5 {[%emt 0:00:24]} 33. h4 {[%emt 0:00:07]} Be6 {[%emt 0:00:45]} 34. a3 {[%emt 0:00:20]} Kb5 {[%emt 0:01:41]} 35. Kc2 {[%emt 0:01:04]} Kc5 {[%emt 0:03:21]} 36. f4 {[%emt 0:00:43]} h5 {[%emt 0:01:28]} 37. Nf1 {[%emt 0:00:35]} (37. Kd3 $15) 37... Bf5+ $17 {[%emt 0:00:35]} 38. Kd2 {[%emt 0:00:26] [#]} Kb5 {[%emt 0:00:32]} ({Better is} 38... Kd5 $1 $19 39. Ke2 Bd7) 39. Ne3 $15 {[%emt 0:00:12]} Be4 {[%emt 0:00:33] Hoping for ...Ka4.} 40. g4 {[%emt 0:00:49]} (40. Kc1 $1 $15) 40... hxg4 $19 {[%emt 0:00:47]} 41. Nxg4 {[%emt 0:00:01] [#]} Ka4 $1 {[%emt 0:00:23]} 42. h5 {[%emt 0:00:21]} Bf3 {[%emt 0:01:14]} (42... Kxa3 $19 {has better winning chances. White must now prevent ...c5.} 43. Ke3 Bf5) 43. h6 $17 {[%emt 0:00:33]} gxh6 {[%emt 0:00:15]} 44. Nxh6 {[%emt 0:00:03]} Bd5 {[%emt 0:00:16]} ({But not} 44... Kxa3 45. Nxf7 Bd5 46. Nh6 $11) 45. Kd3 {[%emt 0:00:34]} Kb3 {[%emt 0:01:05] Prevents c4. And now ...Bc4+ would win.} ({Much worse is} 45... Kxa3 46. c4 Be6 47. f5 $11) 46. Kd4 {[%emt 0:00:24]} Bc4 {[%emt 0:00:13] Threatens to win with ...c5+.} 47. f5 $1 {[%emt 0:00:57]} c5+ {[%emt 0:00:11]} 48. Ke5 {[%emt 0:00:02]} Kxc3 {[%emt 0:00:01] aiming for ...b5.} 49. Kf6 {[%emt 0:00:19]} b5 {[%emt 0:00:28]} (49... Ba2 $15 50. Nxf7 Kb2) 50. Nxf7 $11 {[%emt 0:00:16] The position is equal.} b4 {[%emt 0:00:31]} 51. axb4 {[%emt 0:00:09]} cxb4 {[%emt 0:00:01]} 52. Nd6 $1 {[%emt 0:00:31]} b3 {[%emt 0:00:19]} 53. Nxc4 {[%emt 0:00:32]} Kxc4 {[%emt 0:00:02] KP-KP} 54. Kg7 $1 {[%emt 0:00:19]} b2 {[%emt 0:00:39]} (54... Kd5 $5) 55. f6 {[%emt 0:00:05]} b1=Q {[%emt 0:00:09] ( -> ...Qb2)} 56. f7 {[%emt 0:00:17]} Qg1+ {[%emt 0:00:32]} 57. Kh7 {[%emt 0:00:25]} Qh2+ {[%emt 0:00:09]} 58. Kg7 {[%emt 0:00:09]} Qg3+ {[%emt 0:00:12]} 59. Kh7 {[%emt 0:00:07]} Qf4 {[%emt 0:00:29]} 60. Kg7 {[%emt 0:00:12]} Qg5+ {[%emt 0:00:16]} 61. Kh7 $1 {[%emt 0:00:32]} Qf6 {[%emt 0:00:10]} 62. Kg8 {[%emt 0:00:07]} Qg6+ {[%emt 0:00:09]} 63. Kh8 {[%emt 0:00:08]} Qf6+ {[%emt 0:00:42]} 64. Kg8 {[%emt 0:00:07]} Qe6 {[%emt 0:00:05]} 65. Kh8 {Weighted Error Value: White=0.12 (very precise) /Black=0.11 (very precise)} 1/2-1/2

[Event "ESP-ch Teams Primera 2022"]
[Site "Sanxenxo Pontevedra"]
[Date "2022.09.23"]
[Round "7.24"]
[White "Hernandez Estevez, Yudania"]
[Black "Dorado Meijide, Andrea"]
[Result "1-0"]
[ECO "A40"]
[WhiteElo "2199"]
[BlackElo "1801"]
[Annotator "TA"]
[PlyCount "77"]
[EventDate "2022.09.17"]
[EventType "team-tourn"]
[EventCountry "ESP"]
[SourceTitle "playchess.com"]
[Source "ChessBase"]
[SourceQuality "1"]
[TimeControl "5400+30"]

{[%evp 13,77,10,7,0,8,0,0,0,91,84,92,92,106,104,127,105,116,112,125,102,141,133,135,127,155,159,175,154,190,165,149,160,145,139,157,137,129,110,120,119,125,125,121,128,137,133,204,202,306,295,326,312,1070,1039,2096,1084,29967,29966,29959,29962,29962,29959,29979,29966,29997,29998]} 1. d4 {[%emt 0:00:06]} e6 {[%emt 0:00:12]} 2. Nf3 {[%emt 0:00:18]} Nf6 {[%emt 0:00:14]} 3. Bf4 {[%emt 0:01:00]} b6 {[%emt 0:00:59]} 4. e3 {[%emt 0:02:09]} Bb7 {[%emt 0:00:39]} 5. h3 {[%emt 0:00:06]} Be7 {[%emt 0:01:32]} 6. Nbd2 {[%emt 0:00:38]} O-O {[%emt 0:01:01]} 7. Bd3 {[%emt 0:00:20]} d5 {[%emt 0:03:44]} 8. Ne5 {[%emt 0:13:20] D02: 1 d4 d5 2 Nf3 sidelines, including 2...Nf6 3 g3 and 2...Nf6 3 Bf4.} Nbd7 {[%emt 0:03:57]} 9. Qf3 {[%emt 0:04:51]} c5 {[%emt 0:02:36]} 10. c3 {[%emt 0:00:22] The position is equal.} c4 {[%emt 0:05:18] [#]} (10... Ne8 $11) 11. Bxc4 $146 {[%emt 0:01:53]} ({Predecessor:} 11. Bc2 b5 12. O-O a5 13. Rfe1 b4 14. Nexc4 Rc8 15. Nd6 Bxd6 16. Bxd6 Re8 17. Rac1 bxc3 18. bxc3 Rxc3 19. Bxh7+ Nxh7 20. Rxc3 {1-0 (28) Rayes,A (2203)-Ali,A (1913) Sharjah 2021}) 11... Nxe5 {[%emt 0:07:46]} 12. Bxe5 {[%emt 0:01:13]} Qd7 {[%emt 0:12:39]} 13. Bd3 {[%emt 0:01:04]} b5 {[%emt 0:01:20]} 14. O-O {[%emt 0:03:36]} Rfc8 {[%emt 0:03:18]} 15. Qe2 {[%emt 0:05:10]} Bc6 {[%emt 0:02:46]} 16. Rfc1 {[%emt 0:14:20]} Ne8 {[%emt 0:06:43]} 17. e4 {[%emt 0:01:33] White is much more active.} ({Resist} 17. Qh5 g6 18. Qg4 Nd6 $16) 17... a5 {[%emt 0:14:14]} 18. exd5 {[%emt 0:01:08]} exd5 {[%emt 0:01:36]} 19. Re1 {[%emt 0:01:15]} Ra7 {[%emt 0:03:15]} 20. Nf3 {[%emt 0:02:55]} ({Don't play} 20. Qh5 g6 21. Qf3 Nd6 $16) 20... Nd6 {[%emt 0:08:14]} 21. Bxd6 {[%emt 0:00:37]} Bxd6 {[%emt 0:02:54]} 22. Ne5 {[%emt 0:01:09]} Bxe5 {[%emt 0:00:43]} 23. Qxe5 {[%emt 0:00:17] Strongly threatening Bf5.} g6 {[%emt 0:02:11] Inhibits Bf5.} 24. Re3 {[%emt 0:01:25]} Re8 {[%emt 0:00:48]} 25. Qf4 {[%emt 0:05:20]} Raa8 {[%emt 0:01:18]} 26. h4 {[%emt 0:03:04][%cal Bh3h4,Bh4h5][%mdl 32]} Rxe3 {[%emt 0:00:39]} 27. fxe3 {[%emt 0:01:21]} Re8 {[%emt 0:01:38]} 28. h5 {[%emt 0:01:39]} Qe7 {[%emt 0:03:15]} 29. Re1 {[%emt 0:01:48]} b4 {[%emt 0:01:24] [#]} (29... Rd8 $16 30. Rf1 b4) 30. c4 $1 $18 {[%emt 0:00:20]} b3 {[%emt 0:00:39]} (30... Kh8 {keeps fighting.} 31. b3 Kg8 32. cxd5 Bxd5) 31. axb3 {[%emt 0:00:57]} Qb4 {[%emt 0:00:50]} 32. Rf1 {[%emt 0:10:04]} f5 {[%emt 0:02:41]} (32... Qe7 33. Rf2 Bb7) 33. hxg6 {[%emt 0:01:04] aiming for cxd5.} hxg6 {[%emt 0:00:20] [#]} 34. Bxf5 $1 {[%emt 0:01:02]} gxf5 {[%emt 0:01:41]} (34... Qe7 35. Rf3) 35. Qg5+ {[%emt 0:01:40] White mates.} Kf7 {[%emt 0:01:35]} 36. Rxf5+ {[%emt 0:03:57]} Ke6 {[%emt 0:00:29]} 37. cxd5+ {[%emt 0:01:15]} Bxd5 {[%emt 0:00:41]} 38. Re5+ {[%emt 0:00:12]} ({Don't blunder} 38. Rxd5 $2 Qe1+ 39. Kh2 Rh8+ 40. Qh5 Rxh5+ 41. Rxh5 Qf2 42. Re5+ Kd6 $19) 38... Kf7 {[%emt 0:01:52]} 39. Qf4+ {[%emt 0:01:47] Weighted Error Value: White=0.09 (flawless) /Black=0.37} 1-0